[Event "*** SCC Grand Prix: Titled Tuesday Blitz"]
[Site "Chess.com"]
[Date "2020.07.14"]
[Round "5"]
[White "VladaSviridova"]
[Black "N00bM3ster"]
[Result "0-1"]
[WhiteElo "2119"]
[BlackElo "2812"]
[TimeControl "180+1"]
[EndTime "10:56:05 PDT"]
[Termination "N00bM3ster won by resignation"]

1. d4 {[%clk 0:03:00.1]} 1... Nf6 {[%clk 0:02:59.3]} 2. c4 {[%clk 0:02:59.7]}
2... e6 {[%clk 0:02:59.7]} 3. Nf3 {[%clk 0:02:59.8]} 3... d5 {[%clk 0:02:59.1]}
4. Nc3 {[%clk 0:02:59.6]} 4... Bb4 {[%clk 0:02:55.1]} 5. Bg5 {[%clk 0:02:59.2]}
5... h6 {[%clk 0:02:53.1]} 6. Bxf6 {[%clk 0:02:58.9]} 6... Qxf6 {[%clk
0:02:44.5]} 7. e3 {[%clk 0:02:59.1]} 7... O-O {[%clk 0:02:37]} 8. Bd3 {[%clk
0:02:57.7]} 8... dxc4 {[%clk 0:02:27.5]} 9. Bxc4 {[%clk 0:02:57.6]} 9... c5
{[%clk 0:02:28.4]} 10. O-O {[%clk 0:02:56.5]} 10... cxd4 {[%clk 0:02:27.7]} 11.
Ne4 {[%clk 0:02:54.4]} 11... Qg6 {[%clk 0:02:24.6]} 12. Qxd4 {[%clk 0:02:25.5]}
12... Nc6 {[%clk 0:02:21.6]} 13. Qd3 {[%clk 0:02:15.3]} 13... Rd8 {[%clk
0:02:16.3]} 14. Qc2 {[%clk 0:02:11.7]} 14... e5 {[%clk 0:02:15.4]} 15. a3 {[%clk
0:02:08.5]} 15... Bf5 {[%clk 0:01:48.9]} 16. axb4 {[%clk 0:01:42]} 16... Bxe4
{[%clk 0:01:47]} 17. Qe2 {[%clk 0:01:37.6]} 17... Nxb4 {[%clk 0:01:44.8]} 18.
Nh4 {[%clk 0:01:13.7]} 18... Qf6 {[%clk 0:01:38.1]} 19. g3 {[%clk 0:01:01.4]}
19... g5 {[%clk 0:01:32.4]} 20. Ng2 {[%clk 0:00:54.3]} 20... Bf3 {[%clk
0:01:22]} 21. Qe1 {[%clk 0:00:45.6]} 21... Bxg2 {[%clk 0:01:14.1]} 22. Kxg2
{[%clk 0:00:42.7]} 22... Qc6+ {[%clk 0:01:11.8]} 23. Kg1 {[%clk 0:00:38.6]}
23... Qxc4 {[%clk 0:01:11.3]} 24. Ra4 {[%clk 0:00:38.4]} 24... a5 {[%clk
0:01:02.9]} 25. Qa1 {[%clk 0:00:35.6]} 25... b6 {[%clk 0:00:48.3]} 26. Rc1
{[%clk 0:00:29.8]} 26... Qe2 {[%clk 0:00:42]} 27. b3 {[%clk 0:00:25.5]} 27...
Rd2 {[%clk 0:00:24.2]} 28. Rf1 {[%clk 0:00:24.9]} 28... Rad8 {[%clk 0:00:22.2]}
29. Qxe5 {[%clk 0:00:24.1]} 29... Rd1 {[%clk 0:00:21.4]} 30. Rxd1 {[%clk
0:00:16.8]} 30... Qxd1+ {[%clk 0:00:22.3]} 31. Kg2 {[%clk 0:00:16.4]} 31... Qd5+
{[%clk 0:00:22.8]} 32. Qxd5 {[%clk 0:00:16.3]} 32... Rxd5 {[%clk 0:00:22.3]} 33.
Ra1 {[%clk 0:00:16.2]} 33... Rd3 {[%clk 0:00:22.1]} 34. Rc1 {[%clk 0:00:15.8]}
34... Rxb3 {[%clk 0:00:21.6]} 35. Rc8+ {[%clk 0:00:14.3]} 35... Kg7 {[%clk
0:00:21.4]} 36. Kf3 {[%clk 0:00:14.3]} 36... a4 {[%clk 0:00:21.4]} 37. Ra8
{[%clk 0:00:13.3]} 37... a3 {[%clk 0:00:21.2]} 0-1

[Event "*** SCC Grand Prix: Titled Tuesday Blitz"]
[Site "Chess.com"]
[Date "2020.07.14"]
[Round "5"]
[White "EfM13"]
[Black "Love_craft"]
[Result "1-0"]
[WhiteElo "2258"]
[BlackElo "2453"]
[TimeControl "180+1"]
[EndTime "10:56:06 PDT"]
[Termination "EfM13 won on time"]

1. e4 {[%clk 0:03:00.9]} 1... g6 {[%clk 0:02:58.2]} 2. d4 {[%clk 0:02:59.8]}
2... Bg7 {[%clk 0:02:57.8]} 3. c3 {[%clk 0:02:57.5]} 3... d6 {[%clk 0:02:57.6]}
4. Bd3 {[%clk 0:02:57.1]} 4... Nd7 {[%clk 0:02:57.5]} 5. f4 {[%clk 0:02:57]}
5... e5 {[%clk 0:02:57.1]} 6. Nf3 {[%clk 0:02:53.6]} 6... Ngf6 {[%clk
0:02:53.2]} 7. O-O {[%clk 0:02:42.2]} 7... O-O {[%clk 0:02:50.6]} 8. Kh1 {[%clk
0:02:16.3]} 8... exd4 {[%clk 0:02:37.5]} 9. cxd4 {[%clk 0:02:13.3]} 9... c5
{[%clk 0:02:37.6]} 10. d5 {[%clk 0:02:12.2]} 10... c4 {[%clk 0:02:35.4]} 11. Bc2
{[%clk 0:02:11.3]} 11... Re8 {[%clk 0:02:33.5]} 12. Nc3 {[%clk 0:02:10.4]} 12...
a6 {[%clk 0:02:28.8]} 13. Be3 {[%clk 0:02:08.7]} 13... b5 {[%clk 0:02:28.1]} 14.
a3 {[%clk 0:02:08.1]} 14... Bb7 {[%clk 0:02:23.6]} 15. Bd4 {[%clk 0:02:08.1]}
15... Rc8 {[%clk 0:02:21.8]} 16. Qd2 {[%clk 0:01:47.7]} 16... Nc5 {[%clk
0:02:13.1]} 17. Rae1 {[%clk 0:01:45.8]} 17... Nb3 {[%clk 0:02:09.5]} 18. Bxb3
{[%clk 0:01:41]} 18... cxb3 {[%clk 0:02:10.4]} 19. Qd1 {[%clk 0:01:27.6]} 19...
Rc4 {[%clk 0:02:07.4]} 20. Qxb3 {[%clk 0:01:26.1]} 20... Qd7 {[%clk 0:01:42.9]}
21. a4 {[%clk 0:01:17.9]} 21... Rec8 {[%clk 0:01:04.8]} 22. axb5 {[%clk
0:01:15.6]} 22... a5 {[%clk 0:01:05.2]} 23. Ra1 {[%clk 0:01:00.4]} 23... Rb4
{[%clk 0:01:03.5]} 24. Qa3 {[%clk 0:00:48.4]} 24... Rcc4 {[%clk 0:01:00.4]} 25.
Qxa5 {[%clk 0:00:35.2]} 25... Rxd4 {[%clk 0:00:59.7]} 26. Nxd4 {[%clk
0:00:34.6]} 26... Rxd4 {[%clk 0:01:00.6]} 27. Qb6 {[%clk 0:00:34.6]} 27... Nxe4
{[%clk 0:00:21.9]} 28. Ra7 {[%clk 0:00:10.5]} 1-0

[Event "*** SCC Grand Prix: Titled Tuesday Blitz"]
[Site "Chess.com"]
[Date "2020.07.14"]
[Round "5"]
[White "Parkas"]
[Black "Nf3c5"]
[Result "0-1"]
[WhiteElo "2350"]
[BlackElo "2523"]
[TimeControl "180+1"]
[EndTime "10:56:10 PDT"]
[Termination "Nf3c5 won by checkmate"]

1. d4 {[%clk 0:03:00.9]} 1... Nf6 {[%clk 0:02:59.5]} 2. Nc3 {[%clk 0:03:00.8]}
2... d5 {[%clk 0:02:58.4]} 3. Bf4 {[%clk 0:03:00.3]} 3... g6 {[%clk 0:02:57.8]}
4. e3 {[%clk 0:02:59.3]} 4... Bg7 {[%clk 0:02:57.5]} 5. h4 {[%clk 0:02:59.4]}
5... h5 {[%clk 0:02:57.2]} 6. Nf3 {[%clk 0:02:59.6]} 6... O-O {[%clk 0:02:57.1]}
7. Ne5 {[%clk 0:02:58.1]} 7... c5 {[%clk 0:02:57.6]} 8. Qd2 {[%clk 0:02:53.1]}
8... Nc6 {[%clk 0:02:57.5]} 9. Nxc6 {[%clk 0:02:48.7]} 9... bxc6 {[%clk
0:02:55.7]} 10. Be5 {[%clk 0:02:47.9]} 10... cxd4 {[%clk 0:02:49.7]} 11. Qxd4
{[%clk 0:02:25.8]} 11... Qa5 {[%clk 0:02:38.5]} 12. Be2 {[%clk 0:02:07.6]} 12...
Ne8 {[%clk 0:02:32.8]} 13. Bxg7 {[%clk 0:02:02.5]} 13... Nxg7 {[%clk 0:02:33.7]}
14. b4 {[%clk 0:01:50.9]} 14... Qc7 {[%clk 0:02:31]} 15. g3 {[%clk 0:01:40.3]}
15... e5 {[%clk 0:02:21.4]} 16. Qc5 {[%clk 0:01:40.1]} 16... Ne6 {[%clk
0:02:21.1]} 17. Qa5 {[%clk 0:01:36]} 17... Qxa5 {[%clk 0:01:53.5]} 18. bxa5
{[%clk 0:01:36.1]} 18... Nc5 {[%clk 0:01:54.4]} 19. Kd2 {[%clk 0:01:35.7]} 19...
d4 {[%clk 0:01:47.9]} 20. exd4 {[%clk 0:01:23.7]} 20... exd4 {[%clk 0:01:48.8]}
21. Nd1 {[%clk 0:01:23]} 21... Ne4+ {[%clk 0:01:38.8]} 22. Kc1 {[%clk
0:01:13.4]} 22... Re8 {[%clk 0:01:38]} 23. Bd3 {[%clk 0:01:12.2]} 23... Nc5
{[%clk 0:01:36.1]} 24. Kd2 {[%clk 0:01:09.4]} 24... Bf5 {[%clk 0:01:24.9]} 25.
Nb2 {[%clk 0:01:01.5]} 25... Rab8 {[%clk 0:01:21.2]} 26. Nc4 {[%clk 0:00:58.4]}
26... Be6 {[%clk 0:00:45.2]} 27. Nd6 {[%clk 0:00:28.9]} 27... Red8 {[%clk
0:00:42.1]} 28. Ne4 {[%clk 0:00:20.4]} 28... Na4 {[%clk 0:00:37.3]} 29. Rhe1
{[%clk 0:00:15.8]} 29... Rb2 {[%clk 0:00:31.5]} 30. Ng5 {[%clk 0:00:13.3]} 30...
Bd5 {[%clk 0:00:30.2]} 31. Re7 {[%clk 0:00:12.9]} 31... Nc3 {[%clk 0:00:26.7]}
32. Rxa7 {[%clk 0:00:11.2]} 32... Re8 {[%clk 0:00:24.8]} 33. Re1 {[%clk
0:00:09.4]} 33... Rxe1 {[%clk 0:00:23.3]} 34. Kxe1 {[%clk 0:00:10.3]} 34... Rb1+
{[%clk 0:00:24]} 35. Kd2 {[%clk 0:00:07.5]} 35... Rd1# {[%clk 0:00:24.3]} 0-1

[Event "*** SCC Grand Prix: Titled Tuesday Blitz"]
[Site "Chess.com"]
[Date "2020.07.14"]
[Round "5"]
[White "shav3184"]
[Black "ural58"]
[Result "0-1"]
[WhiteElo "2283"]
[BlackElo "2487"]
[TimeControl "180+1"]
[EndTime "10:56:10 PDT"]
[Termination "ural58 won by resignation"]

1. e4 {[%clk 0:03:00.9]} 1... d5 {[%clk 0:02:59.5]} 2. exd5 {[%clk 0:02:59.1]}
2... Qxd5 {[%clk 0:02:59.2]} 3. Nf3 {[%clk 0:02:58.5]} 3... Bg4 {[%clk
0:02:58.5]} 4. Be2 {[%clk 0:02:56.2]} 4... Nc6 {[%clk 0:02:58.2]} 5. h3 {[%clk
0:02:52.9]} 5... Bxf3 {[%clk 0:02:57.6]} 6. Bxf3 {[%clk 0:02:52.4]} 6... Qe6+
{[%clk 0:02:57.4]} 7. Qe2 {[%clk 0:02:50.8]} 7... Qxe2+ {[%clk 0:02:45.5]} 8.
Bxe2 {[%clk 0:02:50.7]} 8... O-O-O {[%clk 0:02:43.2]} 9. O-O {[%clk 0:02:49.3]}
9... g6 {[%clk 0:02:42.9]} 10. c3 {[%clk 0:02:49.4]} 10... Bg7 {[%clk
0:02:41.3]} 11. d4 {[%clk 0:02:48.7]} 11... e5 {[%clk 0:02:41.3]} 12. dxe5
{[%clk 0:02:46.1]} 12... Nxe5 {[%clk 0:02:41.3]} 13. Be3 {[%clk 0:02:45]} 13...
a6 {[%clk 0:02:18]} 14. Nd2 {[%clk 0:02:43.8]} 14... Nf6 {[%clk 0:02:17.6]} 15.
Nf3 {[%clk 0:02:42.8]} 15... Nd5 {[%clk 0:02:07.3]} 16. Bg5 {[%clk 0:02:00.6]}
16... Rd6 {[%clk 0:01:46.5]} 17. c4 {[%clk 0:01:53.8]} 17... h6 {[%clk
0:01:32.7]} 18. cxd5 {[%clk 0:01:34.5]} 18... hxg5 {[%clk 0:01:32.1]} 19. Nxg5
{[%clk 0:01:25.4]} 19... Rxd5 {[%clk 0:01:31.8]} 20. f4 {[%clk 0:01:22.2]} 20...
Rd2 {[%clk 0:00:47.5]} 21. Rf2 {[%clk 0:01:07.8]} 21... Nd7 {[%clk 0:00:36.6]}
22. Rd1 {[%clk 0:00:32.9]} 22... Rxd1+ {[%clk 0:00:34.1]} 23. Bxd1 {[%clk
0:00:32.1]} 23... Bd4 {[%clk 0:00:34.1]} 24. Nxf7 {[%clk 0:00:23]} 24... Rf8
{[%clk 0:00:31]} 25. Bb3 {[%clk 0:00:19.1]} 25... Nc5 {[%clk 0:00:25.9]} 26. Bc4
{[%clk 0:00:15.1]} 26... b5 {[%clk 0:00:20.3]} 27. Bd5 {[%clk 0:00:13.1]} 27...
c6 {[%clk 0:00:20.1]} 28. Nd6+ {[%clk 0:00:11.4]} 28... Kd7 {[%clk 0:00:20]} 29.
Ne4 {[%clk 0:00:05.8]} 29... cxd5 {[%clk 0:00:18.6]} 0-1

[Event "*** SCC Grand Prix: Titled Tuesday Blitz"]
[Site "Chess.com"]
[Date "2020.07.14"]
[Round "5"]
[White "kran900"]
[Black "Oneofmyturns"]
[Result "0-1"]
[WhiteElo "2467"]
[BlackElo "2707"]
[TimeControl "180+1"]
[EndTime "10:56:11 PDT"]
[Termination "Oneofmyturns won by resignation"]

1. e4 {[%clk 0:03:00.9]} 1... e5 {[%clk 0:02:59.8]} 2. Nf3 {[%clk 0:02:59.8]}
2... Nc6 {[%clk 0:03:00.1]} 3. Bc4 {[%clk 0:02:59.7]} 3... Bc5 {[%clk
0:03:00.2]} 4. d3 {[%clk 0:02:56]} 4... Nf6 {[%clk 0:02:58.2]} 5. c3 {[%clk
0:02:56.2]} 5... d6 {[%clk 0:02:58.3]} 6. h3 {[%clk 0:02:54.8]} 6... h6 {[%clk
0:02:57.7]} 7. b4 {[%clk 0:02:53.2]} 7... Bb6 {[%clk 0:02:57.5]} 8. a4 {[%clk
0:02:53.8]} 8... a5 {[%clk 0:02:57.6]} 9. b5 {[%clk 0:02:53.9]} 9... Ne7 {[%clk
0:02:57.5]} 10. Nbd2 {[%clk 0:02:47.4]} 10... c6 {[%clk 0:02:49.7]} 11. bxc6
{[%clk 0:02:45.5]} 11... bxc6 {[%clk 0:02:50.6]} 12. O-O {[%clk 0:02:43.5]}
12... O-O {[%clk 0:02:34.7]} 13. Rb1 {[%clk 0:02:43]} 13... Ng6 {[%clk
0:02:23.8]} 14. d4 {[%clk 0:02:38]} 14... exd4 {[%clk 0:02:13.3]} 15. Nxd4
{[%clk 0:02:34]} 15... Bxd4 {[%clk 0:01:51.7]} 16. cxd4 {[%clk 0:02:33.3]} 16...
d5 {[%clk 0:01:52.6]} 17. exd5 {[%clk 0:02:08.2]} 17... Nxd5 {[%clk 0:01:53.5]}
18. Rb3 {[%clk 0:01:55.7]} 18... Re8 {[%clk 0:01:41.3]} 19. Rg3 {[%clk
0:01:53.3]} 19... Ba6 {[%clk 0:01:28.3]} 20. Bxa6 {[%clk 0:01:50.3]} 20... Rxa6
{[%clk 0:01:29.2]} 21. Nc4 {[%clk 0:01:48.3]} 21... Ra7 {[%clk 0:01:21.8]} 22.
Ne5 {[%clk 0:01:44.2]} 22... Nxe5 {[%clk 0:01:13.9]} 23. dxe5 {[%clk 0:01:44]}
23... Rxe5 {[%clk 0:01:08.1]} 24. Bb2 {[%clk 0:01:30.3]} 24... Rg5 {[%clk
0:01:05.3]} 25. Qd4 {[%clk 0:01:20.3]} 25... Rb7 {[%clk 0:00:58]} 26. Bc3 {[%clk
0:01:02]} 26... Rxg3 {[%clk 0:00:40.9]} 27. fxg3 {[%clk 0:01:01.3]} 27... Qg5
{[%clk 0:00:41.1]} 28. g4 {[%clk 0:00:33.2]} 28... Nxc3 {[%clk 0:00:21.8]} 29.
Qxc3 {[%clk 0:00:32.6]} 29... Qd5 {[%clk 0:00:20.1]} 30. Rf5 {[%clk 0:00:28.5]}
30... Rb1+ {[%clk 0:00:18.5]} 31. Kh2 {[%clk 0:00:28.7]} 31... Qd6+ {[%clk
0:00:18.2]} 32. Qe5 {[%clk 0:00:27.6]} 32... Qd1 {[%clk 0:00:11.5]} 33. Qe8+
{[%clk 0:00:23.2]} 33... Kh7 {[%clk 0:00:12]} 34. Rxf7 {[%clk 0:00:20.4]} 34...
Qd6+ {[%clk 0:00:08.7]} 35. g3 {[%clk 0:00:15.6]} 35... Qd2+ {[%clk 0:00:08.4]}
0-1

[Event "*** SCC Grand Prix: Titled Tuesday Blitz"]
[Site "Chess.com"]
[Date "2020.07.14"]
[Round "5"]
[White "grandcoach"]
[Black "brunoo2003"]
[Result "0-1"]
[WhiteElo "2108"]
[BlackElo "2223"]
[TimeControl "180+1"]
[EndTime "10:56:14 PDT"]
[Termination "brunoo2003 won on time"]

1. e4 {[%clk 0:03:00.9]} 1... c5 {[%clk 0:02:58.3]} 2. b4 {[%clk 0:02:58.7]}
2... cxb4 {[%clk 0:02:54.7]} 3. a3 {[%clk 0:02:59.2]} 3... e5 {[%clk 0:02:51.9]}
4. Nf3 {[%clk 0:02:57.6]} 4... Nc6 {[%clk 0:02:50.6]} 5. Bc4 {[%clk 0:02:58]}
5... Be7 {[%clk 0:02:44.8]} 6. Bb2 {[%clk 0:02:46.5]} 6... d6 {[%clk 0:02:40.6]}
7. d4 {[%clk 0:02:20.1]} 7... bxa3 {[%clk 0:02:39.3]} 8. Nxa3 {[%clk 0:02:16.3]}
8... exd4 {[%clk 0:02:39.2]} 9. Nxd4 {[%clk 0:02:13]} 9... Nf6 {[%clk
0:02:36.7]} 10. O-O {[%clk 0:01:58.2]} 10... O-O {[%clk 0:02:35]} 11. Nab5
{[%clk 0:01:57.2]} 11... a6 {[%clk 0:02:32.3]} 12. Nxc6 {[%clk 0:01:54.3]} 12...
bxc6 {[%clk 0:02:33.2]} 13. Nd4 {[%clk 0:01:54.4]} 13... Bd7 {[%clk 0:02:28.4]}
14. Re1 {[%clk 0:01:49.5]} 14... d5 {[%clk 0:02:18.2]} 15. exd5 {[%clk
0:01:44.1]} 15... cxd5 {[%clk 0:02:19.1]} 16. Bd3 {[%clk 0:01:39.3]} 16... Bd6
{[%clk 0:02:17]} 17. Nf5 {[%clk 0:00:57.7]} 17... Bxf5 {[%clk 0:02:10.4]} 18.
Bxf5 {[%clk 0:00:58.6]} 18... Bc5 {[%clk 0:01:54.8]} 19. Bxf6 {[%clk 0:00:46]}
19... Qxf6 {[%clk 0:01:55.7]} 20. Qxd5 {[%clk 0:00:44.6]} 20... Bxf2+ {[%clk
0:01:42.3]} 21. Kxf2 {[%clk 0:00:42.2]} 21... g6 {[%clk 0:01:42.5]} 22. Ra5
{[%clk 0:00:28.9]} 22... Qxf5+ {[%clk 0:01:11.1]} 23. Qxf5 {[%clk 0:00:29.8]}
23... gxf5 {[%clk 0:01:11.9]} 24. Rxf5 {[%clk 0:00:17.3]} 24... Rac8 {[%clk
0:01:11.6]} 25. Re2 {[%clk 0:00:16.2]} 25... Rc6 {[%clk 0:01:11]} 26. Rg5+
{[%clk 0:00:14.7]} 26... Kh8 {[%clk 0:01:10.6]} 27. Ke1 {[%clk 0:00:10.5]} 27...
Rfc8 {[%clk 0:01:09.2]} 28. Kd1 {[%clk 0:00:09.8]} 28... Rd8+ {[%clk 0:01:09]}
29. Rd2 {[%clk 0:00:09.4]} 29... Rxd2+ {[%clk 0:01:08.3]} 30. Kxd2 {[%clk
0:00:10.3]} 30... h6 {[%clk 0:01:08.4]} 31. Rd5 {[%clk 0:00:08.3]} 31... Kg7
{[%clk 0:01:08.4]} 32. Kd3 {[%clk 0:00:08.8]} 32... Kf6 {[%clk 0:01:08.4]} 33.
c4 {[%clk 0:00:09.4]} 33... Ke6 {[%clk 0:01:08.5]} 34. Rh5 {[%clk 0:00:08.8]}
34... Ke7 {[%clk 0:01:08.9]} 35. Kd4 {[%clk 0:00:08.1]} 35... Rg6 {[%clk
0:01:08]} 36. g3 {[%clk 0:00:07.1]} 36... Kd6 {[%clk 0:01:08.5]} 37. Ra5 {[%clk
0:00:06.4]} 37... Kc7 {[%clk 0:01:06.8]} 38. Ra2 {[%clk 0:00:04]} 38... Kb6
{[%clk 0:01:05.6]} 39. Rb2+ {[%clk 0:00:03.5]} 39... Kc7 {[%clk 0:01:03.6]} 40.
Rf2 {[%clk 0:00:03.2]} 40... f6 {[%clk 0:00:58.2]} 41. Kc5 {[%clk 0:00:02.9]}
41... Rg5+ {[%clk 0:00:57.7]} 42. Kb4 {[%clk 0:00:03]} 42... a5+ {[%clk
0:00:56.8]} 43. Kb3 {[%clk 0:00:02.1]} 43... f5 {[%clk 0:00:48.4]} 44. Re2
{[%clk 0:00:01.3]} 44... Rh5 {[%clk 0:00:44.5]} 45. Re6 {[%clk 0:00:01]} 45...
Rxh2 {[%clk 0:00:43.4]} 0-1

[Event "*** SCC Grand Prix: Titled Tuesday Blitz"]
[Site "Chess.com"]
[Date "2020.07.14"]
[Round "5"]
[White "MIJUAREZ"]
[Black "Chessalary"]
[Result "1-0"]
[WhiteElo "2387"]
[BlackElo "2201"]
[TimeControl "180+1"]
[EndTime "10:56:15 PDT"]
[Termination "MIJUAREZ won by resignation"]

1. e4 {[%clk 0:03:00.9]} 1... c5 {[%clk 0:02:59.5]} 2. Nf3 {[%clk 0:03:00.4]}
2... d6 {[%clk 0:02:59.7]} 3. d4 {[%clk 0:02:59.8]} 3... cxd4 {[%clk 0:03:00.6]}
4. Nxd4 {[%clk 0:02:59.1]} 4... Nf6 {[%clk 0:03:01]} 5. f3 {[%clk 0:02:59.6]}
5... a6 {[%clk 0:02:59.2]} 6. c4 {[%clk 0:02:59.3]} 6... e5 {[%clk 0:02:58.9]}
7. Nb3 {[%clk 0:02:57.8]} 7... Be6 {[%clk 0:02:58]} 8. Nc3 {[%clk 0:02:58.2]}
8... Be7 {[%clk 0:02:57.3]} 9. Be3 {[%clk 0:02:58.6]} 9... O-O {[%clk
0:02:56.2]} 10. Be2 {[%clk 0:02:59.1]} 10... Nbd7 {[%clk 0:02:55.1]} 11. Qd2
{[%clk 0:02:59.5]} 11... Nc5 {[%clk 0:02:53.7]} 12. Nxc5 {[%clk 0:02:55.7]}
12... dxc5 {[%clk 0:02:54.6]} 13. Nd5 {[%clk 0:02:55.8]} 13... Bxd5 {[%clk
0:02:51]} 14. cxd5 {[%clk 0:02:55.5]} 14... Bd6 {[%clk 0:02:48.6]} 15. O-O
{[%clk 0:02:55]} 15... b5 {[%clk 0:02:47.5]} 16. Rac1 {[%clk 0:02:55.4]} 16...
Rc8 {[%clk 0:02:45.9]} 17. b3 {[%clk 0:02:52.9]} 17... h6 {[%clk 0:02:42.7]} 18.
a4 {[%clk 0:02:52.8]} 18... Qd7 {[%clk 0:02:37.5]} 19. axb5 {[%clk 0:02:52.7]}
19... axb5 {[%clk 0:02:38.4]} 20. Qd3 {[%clk 0:02:53.1]} 20... b4 {[%clk
0:02:25]} 21. Qd2 {[%clk 0:02:52.2]} 21... Nh5 {[%clk 0:02:11]} 22. g3 {[%clk
0:02:35.1]} 22... Qh3 {[%clk 0:01:58.7]} 23. Qe1 {[%clk 0:02:21.5]} 23... f5
{[%clk 0:01:47.3]} 24. exf5 {[%clk 0:02:15.8]} 24... Qxf5 {[%clk 0:01:38.5]} 25.
Qd1 {[%clk 0:02:08.7]} 25... Nf6 {[%clk 0:01:32.5]} 26. Bd3 {[%clk 0:02:05.6]}
26... Qh3 {[%clk 0:01:27.4]} 27. Be4 {[%clk 0:02:03.4]} 27... Nxe4 {[%clk
0:01:25.7]} 28. fxe4 {[%clk 0:02:03.5]} 28... Qd7 {[%clk 0:00:54.6]} 29. Rxf8+
{[%clk 0:01:59.6]} 29... Rxf8 {[%clk 0:00:49.8]} 30. Kg2 {[%clk 0:01:49]} 30...
Qb5 {[%clk 0:00:46.1]} 31. Rc4 {[%clk 0:01:44.7]} 31... Ra8 {[%clk 0:00:44.1]}
32. Qe2 {[%clk 0:01:39.1]} 32... Ra3 {[%clk 0:00:42.4]} 33. Qc2 {[%clk
0:01:34.5]} 33... Qa5 {[%clk 0:00:41.7]} 34. Kh3 {[%clk 0:01:04.8]} 34... Ra2
{[%clk 0:00:40.8]} 35. Qd3 {[%clk 0:01:04.1]} 35... Rb2 {[%clk 0:00:36.2]} 36.
Bxc5 {[%clk 0:00:58.2]} 36... Bxc5 {[%clk 0:00:32.4]} 37. d6 {[%clk 0:00:58.7]}
37... Bd4 {[%clk 0:00:30.3]} 38. Rc8+ {[%clk 0:00:55]} 38... Kh7 {[%clk
0:00:29.9]} 39. d7 {[%clk 0:00:55.4]} 39... Bb6 {[%clk 0:00:20.4]} 40. Qc4
{[%clk 0:00:46.5]} 40... Bd8 {[%clk 0:00:18.5]} 41. Qe6 {[%clk 0:00:37.4]} 41...
Qa2 {[%clk 0:00:15.9]} 42. Qf5+ {[%clk 0:00:32.9]} 1-0

[Event "*** SCC Grand Prix: Titled Tuesday Blitz"]
[Site "Chess.com"]
[Date "2020.07.14"]
[Round "5"]
[White "korkmaz16"]
[Black "Vladislav_Chizhikov"]
[Result "1-0"]
[WhiteElo "2329"]
[BlackElo "2431"]
[TimeControl "180+1"]
[EndTime "10:56:18 PDT"]
[Termination "korkmaz16 won by checkmate"]

1. d4 {[%clk 0:02:55.5]} 1... d5 {[%clk 0:02:59.5]} 2. Nf3 {[%clk 0:02:54.9]}
2... c6 {[%clk 0:02:57.6]} 3. c4 {[%clk 0:02:51.1]} 3... e6 {[%clk 0:02:56.4]}
4. Nc3 {[%clk 0:02:50.7]} 4... f5 {[%clk 0:02:55.6]} 5. Bf4 {[%clk 0:02:24.1]}
5... Nf6 {[%clk 0:02:54.2]} 6. e3 {[%clk 0:02:23.4]} 6... Be7 {[%clk 0:02:52.4]}
7. Ne5 {[%clk 0:02:18.7]} 7... O-O {[%clk 0:02:50.6]} 8. Bd3 {[%clk 0:02:16.6]}
8... Nbd7 {[%clk 0:02:47.6]} 9. O-O {[%clk 0:02:15]} 9... Nxe5 {[%clk
0:02:47.1]} 10. Bxe5 {[%clk 0:02:14.5]} 10... Bd7 {[%clk 0:02:45]} 11. f3 {[%clk
0:02:10.8]} 11... Qa5 {[%clk 0:02:26.1]} 12. Qe2 {[%clk 0:02:05]} 12... a6
{[%clk 0:02:19.1]} 13. a3 {[%clk 0:02:04]} 13... b5 {[%clk 0:02:18.6]} 14. b4
{[%clk 0:01:56.4]} 14... Qd8 {[%clk 0:02:18.6]} 15. c5 {[%clk 0:01:54.3]} 15...
Be8 {[%clk 0:02:17.5]} 16. e4 {[%clk 0:01:53]} 16... Nd7 {[%clk 0:02:15.7]} 17.
exd5 {[%clk 0:01:14]} 17... exd5 {[%clk 0:02:16.6]} 18. Bd6 {[%clk 0:01:01.2]}
18... Bxd6 {[%clk 0:02:11.7]} 19. Qe6+ {[%clk 0:01:01.5]} 19... Kh8 {[%clk
0:02:01.9]} 20. Qxd6 {[%clk 0:01:00.1]} 20... Rf6 {[%clk 0:01:55.2]} 21. Qf4
{[%clk 0:00:58.1]} 21... Bg6 {[%clk 0:01:49.8]} 22. Rae1 {[%clk 0:00:57.2]}
22... Nf8 {[%clk 0:01:49.6]} 23. Re5 {[%clk 0:00:54.3]} 23... a5 {[%clk
0:01:41.1]} 24. Rfe1 {[%clk 0:00:53.8]} 24... axb4 {[%clk 0:01:39]} 25. axb4
{[%clk 0:00:54.7]} 25... Ra3 {[%clk 0:01:38.5]} 26. Qd2 {[%clk 0:00:54.8]} 26...
Rb3 {[%clk 0:01:27.4]} 27. Ne2 {[%clk 0:00:54.2]} 27... f4 {[%clk 0:01:22.2]}
28. Nxf4 {[%clk 0:00:49.4]} 28... Bxd3 {[%clk 0:01:18.9]} 29. Nxd3 {[%clk
0:00:49.1]} 29... Qa8 {[%clk 0:01:07]} 30. Re8 {[%clk 0:00:48.7]} 30... Qa3
{[%clk 0:01:06.7]} 31. Ne5 {[%clk 0:00:47.2]} 31... Rb2 {[%clk 0:00:58.7]} 32.
Qg5 {[%clk 0:00:46.6]} 32... h6 {[%clk 0:00:49.7]} 33. Ng6+ {[%clk 0:00:42.9]}
33... Kh7 {[%clk 0:00:42.5]} 34. Nxf8+ {[%clk 0:00:42.6]} 34... Rxf8 {[%clk
0:00:42.5]} 35. Qe7 {[%clk 0:00:40.6]} 35... Rxe8 {[%clk 0:00:39.4]} 36. Qxe8
{[%clk 0:00:41.5]} 36... Qxb4 {[%clk 0:00:38.5]} 37. Qe5 {[%clk 0:00:41.8]}
37... Kg8 {[%clk 0:00:19.9]} 38. Qe6+ {[%clk 0:00:41.4]} 38... Kh8 {[%clk
0:00:19]} 39. Qe8+ {[%clk 0:00:39.4]} 39... Kh7 {[%clk 0:00:19.1]} 40. Qe5
{[%clk 0:00:37.9]} 40... Kg8 {[%clk 0:00:18.4]} 41. Qe6+ {[%clk 0:00:35.5]}
41... Kh8 {[%clk 0:00:17.6]} 42. Qc8+ {[%clk 0:00:35.4]} 42... Kh7 {[%clk
0:00:13.3]} 43. Qf5+ {[%clk 0:00:35.9]} 43... g6 {[%clk 0:00:12.2]} 44. Re7+
{[%clk 0:00:35.8]} 44... Kh8 {[%clk 0:00:12.7]} 45. Qf8# {[%clk 0:00:35.5]} 1-0